Workbook

Sheet JAM
A1: COM | B1: 3
A2: 文字間 | B2: 10
A3: 行間 | B3: 100

Sheet MusicBox
A1: 1 | B1: 10 'MUSIC BOX | C1: 10 'SCR-SAVE
A2: =OFFSET(音階データ!B5,$A$1*3,0) -> ハ長調 | B2: =OFFSET(音階データ!C5,$A$1*3,0) -> 20 M=8 | C2: 20 IFSCR(0,1)<>0GOTO@S
B3: =OFFSET(音階データ!C6,$A$1*3,0) -> 30 S="ﾄﾞ-ﾚ--ﾐ--ﾌｧ-ｿ--ﾗ--ｼ--ﾄﾞ-" | C3: 30 @L:COPY #900,#D00,768
B4: =OFFSET(音階データ!C7,$A$1*3,0) -> 40 LET[0],191,170,152,143,128,114,101,96 | C4: 40 LC0,22:END
B5: 50 OUT5,0:L=10:N=2:P=50 | C5: 50 @S:COPY #D00,#900,768
B6: 60 FORJ=0TO31 | C6: 60 SAVE FILE():END
B7: 70 IFSCR(0,1)=0GOTO@L
B8: 80 IFSCR(0,1)=32GOTO@L
B9: 90 F=-1
B10: 100 FORI=1TOM
B11: 110 IFSCR(0,I)=79:F=M-I
B12: 120 NEXT
B13: 130 IFF>=0PWM5,[F]*P/100,[F]
B14: 140 WAITL-N
B15: 150 OUT5,0:WAITN:SCROLL3
B16: 160 NEXT
B17: 170 @L:CLS:FORI=1TOM:LC0,I
B18: 180 FORJ=0TO2
B19: 190 ?CHR$(PEEK(S+(M-I)*3+J));
B20: 200 NEXT
B21: 210 FORJ=3TO31:?"-";:NEXT
B22: 220 NEXT
B23: 230 @E:LC0,0:?"LRUN";FILE()
B24: 240 LC0,M+2:END

Sheet EEPROM
A1: NEW | B1: NEW | C1: NEW | D1: NEW | E1: NEW | F1: NEW | G1: NEW | H1: NEW | I1: NEW | J1: NEW | K1: NEW | L1: NEW | M1: NEW | N1: NEW
A2: 10 'ﾊﾁｮｳﾁｮｳ | B2: 10 'ﾊﾝｵﾝｶｲ | C2: 10 'ﾀﾝﾁｮｳ | D2: 10 'ﾌﾞﾙｰﾉｰﾄ | E2: 10 'ｹﾞｹﾞｹﾞ | F2: 10 'ﾘｭｳｷｭｳ | G2: 10 'ﾖﾅﾇｷ | H2: 10 'ﾊﾁｮｳﾁｮｳ | I2: 10 'ﾊﾝｵﾝｶｲ | J2: 10 'ﾀﾝﾁｮｳ | K2: 10 'ﾌﾞﾙｰﾉｰﾄ | L2: 10 'ｹﾞｹﾞｹﾞ | M2: 10 'ﾘｭｳｷｭｳ | N2: 10 'ﾖﾅﾇｷ
A3: 20 M=8 | B3: 20 M=13 | C3: 20 M=8 | D3: 20 M=8 | E3: 20 M=11 | F3: 20 M=6 | G3: 20 M=6 | H3: 20 M=14 | I3: 20 M=18 | J3: 20 M=14 | K3: 20 M=13 | L3: 20 M=19 | M3: 20 M=10 | N3: 20 M=10
A4: 30 S="ﾄﾞ-ﾚ--ﾐ--ﾌｧ-ｿ--ﾗ--ｼ--ﾄﾞ-" | B4: 30 S="ﾄﾞ-ﾄﾞ#ﾚ--ﾐb-ﾐ--ﾌｧ-ﾌｧ#ｿ--ｿ#-ﾗ--ｼbｰｼ--ﾄﾞ-" | C4: 30 S="ﾄﾞ-ﾚ--ﾐb-ﾌｧ-ｿ--ｿ#-ｼ--ﾄﾞ-" | D4: 30 S="ﾄﾞ-ﾚ--ﾐb-ﾌｧ-ﾌｧ#ｿ--ｼbｰﾄﾞ-" | E4: 30 S="ﾄﾞ-ﾚ--ﾐb-ﾌｧ-ﾌｧ#ｿ--ｿ#-ﾗ--ｼbｰｼ--ﾄﾞ-" | F4: 30 S="ﾄﾞ-ﾐ--ﾌｧ-ｿ--ｼ--ﾄﾞ-" | G4: 30 S="ﾄﾞ-ﾚ--ﾐ--ｿ--ﾗ--ﾄﾞ-" | H4: 30 S="ｿ--ﾗ--ｼ--ﾄﾞ-ﾚ--ﾐ--ﾌｧ-ｿ--ﾗ--ｼ--ﾄﾞ-ﾚ--ﾐ--ﾌｧ-" | I4: 30 S="ﾗ--ｼbｰｼ--ﾄﾞ-ﾄﾞ#ﾚ--ﾐb-ﾐ--ﾌｧ-ﾌｧ#ｿ--ｿ#-ﾗ--ｼbｰｼ--ﾄﾞ-ﾄﾞ#ﾚ--" | J4: 30 S="ｿ--ｿ#-ｼ--ﾄﾞ-ﾚ--ﾐb-ﾌｧ-ｿ--ｿ#-ｼ--ﾄﾞ-ﾚ--ﾐb-ﾌｧ-" | K4: 30 S="ｿ--ｼbｰﾄﾞ-ﾚ--ﾐb-ﾌｧ-ﾌｧ#ｿ--ｼbｰﾄﾞ-ﾚ--ﾐb-ﾌｧ-" | L4: 30 S="ｿ--ｿ#-ﾗ--ｼbｰｼ--ﾄﾞ-ﾚ--ﾐb-ﾌｧ-ﾌｧ#ｿ--ｿ#-ﾗ--ｼbｰｼ--ﾄﾞ-ﾚ--ﾐb-ﾌｧ-" | M4: 30 S="ｿ--ｼ--ﾄﾞ-ﾐ--ﾌｧ-ｿ--ｼ--ﾄﾞ-ﾐ--ﾌｧ-" | N4: 30 S="ｿ--ﾗ--ﾄﾞ-ﾚ--ﾐ--ｿ--ﾗ--ﾄﾞ-ﾚ--ﾐ--"
A5: 40 LET[0],191,170,152,143,128,114,101,96 | B5: 40 LET[0],191,180,170,161,152,143,135,128,120,114,107,101,96 | C5: 40 LET[0],191,170,161,143,128,120,101,96 | D5: 40 LET[0],191,170,161,143,135,128,107,96 | E5: 40 LET[0],191,170,161,143,135,128,120,114,107,101,96 | F5: 40 LET[0],191,152,143,128,101,96 | G5: 40 LET[0],191,170,152,128,114,96 | H5: 40 LET[0],255,227,202,191,170,152,143,128,114,101,96,85,76,72 | I5: 40 LET[0],227,215,202,191,180,170,161,152,143,135,128,120,114,107,101,96,90,85 | J5: 40 LET[0],255,241,202,191,170,161,143,128,120,101,96,85,80,72 | K5: 40 LET[0],255,215,191,170,161,143,135,128,107,96,85,80,72 | L5: 40 LET[0],255,241,227,215,202,191,170,161,143,135,128,120,114,107,101,96,85,80,72 | M5: 40 LET[0],255,202,191,152,143,128,101,96,76,72 | N5: 40 LET[0],255,227,191,170,152,128,114,96,85,76
A6: 50 OUT5,0:L=10:N=2:P=50 | B6: 50 OUT5,0:L=10:N=2:P=50 | C6: 50 OUT5,0:L=10:N=2:P=50 | D6: 50 OUT5,0:L=10:N=2:P=50 | E6: 50 OUT5,0:L=10:N=2:P=50 | F6: 50 OUT5,0:L=10:N=2:P=50 | G6: 50 OUT5,0:L=10:N=2:P=50 | H6: 50 OUT5,0:L=10:N=2:P=50 | I6: 50 OUT5,0:L=10:N=2:P=50 | J6: 50 OUT5,0:L=10:N=2:P=50 | K6: 50 OUT5,0:L=10:N=2:P=50 | L6: 50 OUT5,0:L=10:N=2:P=50 | M6: 50 OUT5,0:L=10:N=2:P=50 | N6: 50 OUT5,0:L=10:N=2:P=50
A7: 60 FORJ=0TO31 | B7: 60 FORJ=0TO31 | C7: 60 FORJ=0TO31 | D7: 60 FORJ=0TO31 | E7: 60 FORJ=0TO31 | F7: 60 FORJ=0TO31 | G7: 60 FORJ=0TO31 | H7: 60 FORJ=0TO31 | I7: 60 FORJ=0TO31 | J7: 60 FORJ=0TO31 | K7: 60 FORJ=0TO31 | L7: 60 FORJ=0TO31 | M7: 60 FORJ=0TO31 | N7: 60 FORJ=0TO31
A8: 70 IFSCR(0,1)=0GOTO@L | B8: 70 IFSCR(0,1)=0GOTO@L | C8: 70 IFSCR(0,1)=0GOTO@L | D8: 70 IFSCR(0,1)=0GOTO@L | E8: 70 IFSCR(0,1)=0GOTO@L | F8: 70 IFSCR(0,1)=0GOTO@L | G8: 70 IFSCR(0,1)=0GOTO@L | H8: 70 IFSCR(0,1)=0GOTO@L | I8: 70 IFSCR(0,1)=0GOTO@L | J8: 70 IFSCR(0,1)=0GOTO@L | K8: 70 IFSCR(0,1)=0GOTO@L | L8: 70 IFSCR(0,1)=0GOTO@L | M8: 70 IFSCR(0,1)=0GOTO@L | N8: 70 IFSCR(0,1)=0GOTO@L
A9: 80 IFSCR(0,1)=32GOTO@L | B9: 80 IFSCR(0,1)=32GOTO@L | C9: 80 IFSCR(0,1)=32GOTO@L | D9: 80 IFSCR(0,1)=32GOTO@L | E9: 80 IFSCR(0,1)=32GOTO@L | F9: 80 IFSCR(0,1)=32GOTO@L | G9: 80 IFSCR(0,1)=32GOTO@L | H9: 80 IFSCR(0,1)=32GOTO@L | I9: 80 IFSCR(0,1)=32GOTO@L | J9: 80 IFSCR(0,1)=32GOTO@L | K9: 80 IFSCR(0,1)=32GOTO@L | L9: 80 IFSCR(0,1)=32GOTO@L | M9: 80 IFSCR(0,1)=32GOTO@L | N9: 80 IFSCR(0,1)=32GOTO@L
A10: 90 F=-1 | B10: 90 F=-1 | C10: 90 F=-1 | D10: 90 F=-1 | E10: 90 F=-1 | F10: 90 F=-1 | G10: 90 F=-1 | H10: 90 F=-1 | I10: 90 F=-1 | J10: 90 F=-1 | K10: 90 F=-1 | L10: 90 F=-1 | M10: 90 F=-1 | N10: 90 F=-1
A11: 100 FORI=1TOM | B11: 100 FORI=1TOM | C11: 100 FORI=1TOM | D11: 100 FORI=1TOM | E11: 100 FORI=1TOM | F11: 100 FORI=1TOM | G11: 100 FORI=1TOM | H11: 100 FORI=1TOM | I11: 100 FORI=1TOM | J11: 100 FORI=1TOM | K11: 100 FORI=1TOM | L11: 100 FORI=1TOM | M11: 100 FORI=1TOM | N11: 100 FORI=1TOM
A12: 110 IFSCR(0,I)=79:F=M-I | B12: 110 IFSCR(0,I)=79:F=M-I | C12: 110 IFSCR(0,I)=79:F=M-I | D12: 110 IFSCR(0,I)=79:F=M-I | E12: 110 IFSCR(0,I)=79:F=M-I | F12: 110 IFSCR(0,I)=79:F=M-I | G12: 110 IFSCR(0,I)=79:F=M-I | H12: 110 IFSCR(0,I)=79:F=M-I | I12: 110 IFSCR(0,I)=79:F=M-I | J12: 110 IFSCR(0,I)=79:F=M-I | K12: 110 IFSCR(0,I)=79:F=M-I | L12: 110 IFSCR(0,I)=79:F=M-I | M12: 110 IFSCR(0,I)=79:F=M-I | N12: 110 IFSCR(0,I)=79:F=M-I
A13: 120 NEXT | B13: 120 NEXT | C13: 120 NEXT | D13: 120 NEXT | E13: 120 NEXT | F13: 120 NEXT | G13: 120 NEXT | H13: 120 NEXT | I13: 120 NEXT | J13: 120 NEXT | K13: 120 NEXT | L13: 120 NEXT | M13: 120 NEXT | N13: 120 NEXT
A14: 130 IFF>=0PWM5,[F]*P/100,[F] | B14: 130 IFF>=0PWM5,[F]*P/100,[F] | C14: 130 IFF>=0PWM5,[F]*P/100,[F] | D14: 130 IFF>=0PWM5,[F]*P/100,[F] | E14: 130 IFF>=0PWM5,[F]*P/100,[F] | F14: 130 IFF>=0PWM5,[F]*P/100,[F] | G14: 130 IFF>=0PWM5,[F]*P/100,[F] | H14: 130 IFF>=0PWM5,[F]*P/100,[F] | I14: 130 IFF>=0PWM5,[F]*P/100,[F] | J14: 130 IFF>=0PWM5,[F]*P/100,[F] | K14: 130 IFF>=0PWM5,[F]*P/100,[F] | L14: 130 IFF>=0PWM5,[F]*P/100,[F] | M14: 130 IFF>=0PWM5,[F]*P/100,[F] | N14: 130 IFF>=0PWM5,[F]*P/100,[F]
A15: 140 WAITL-N | B15: 140 WAITL-N | C15: 140 WAITL-N | D15: 140 WAITL-N | E15: 140 WAITL-N | F15: 140 WAITL-N | G15: 140 WAITL-N | H15: 140 WAITL-N | I15: 140 WAITL-N | J15: 140 WAITL-N | K15: 140 WAITL-N | L15: 140 WAITL-N | M15: 140 WAITL-N | N15: 140 WAITL-N
A16: 150 OUT5,0:WAITN:SCROLL3 | B16: 150 OUT5,0:WAITN:SCROLL3 | C16: 150 OUT5,0:WAITN:SCROLL3 | D16: 150 OUT5,0:WAITN:SCROLL3 | E16: 150 OUT5,0:WAITN:SCROLL3 | F16: 150 OUT5,0:WAITN:SCROLL3 | G16: 150 OUT5,0:WAITN:SCROLL3 | H16: 150 OUT5,0:WAITN:SCROLL3 | I16: 150 OUT5,0:WAITN:SCROLL3 | J16: 150 OUT5,0:WAITN:SCROLL3 | K16: 150 OUT5,0:WAITN:SCROLL3 | L16: 150 OUT5,0:WAITN:SCROLL3 | M16: 150 OUT5,0:WAITN:SCROLL3 | N16: 150 OUT5,0:WAITN:SCROLL3
A17: 160 NEXT | B17: 160 NEXT | C17: 160 NEXT | D17: 160 NEXT | E17: 160 NEXT | F17: 160 NEXT | G17: 160 NEXT | H17: 160 NEXT | I17: 160 NEXT | J17: 160 NEXT | K17: 160 NEXT | L17: 160 NEXT | M17: 160 NEXT | N17: 160 NEXT
A18: 170 @L:CLS:FORI=1TOM:LC0,I | B18: 170 @L:CLS:FORI=1TOM:LC0,I | C18: 170 @L:CLS:FORI=1TOM:LC0,I | D18: 170 @L:CLS:FORI=1TOM:LC0,I | E18: 170 @L:CLS:FORI=1TOM:LC0,I | F18: 170 @L:CLS:FORI=1TOM:LC0,I | G18: 170 @L:CLS:FORI=1TOM:LC0,I | H18: 170 @L:CLS:FORI=1TOM:LC0,I | I18: 170 @L:CLS:FORI=1TOM:LC0,I | J18: 170 @L:CLS:FORI=1TOM:LC0,I | K18: 170 @L:CLS:FORI=1TOM:LC0,I | L18: 170 @L:CLS:FORI=1TOM:LC0,I | M18: 170 @L:CLS:FORI=1TOM:LC0,I | N18: 170 @L:CLS:FORI=1TOM:LC0,I
A19: 180 FORJ=0TO2 | B19: 180 FORJ=0TO2 | C19: 180 FORJ=0TO2 | D19: 180 FORJ=0TO2 | E19: 180 FORJ=0TO2 | F19: 180 FORJ=0TO2 | G19: 180 FORJ=0TO2 | H19: 180 FORJ=0TO2 | I19: 180 FORJ=0TO2 | J19: 180 FORJ=0TO2 | K19: 180 FORJ=0TO2 | L19: 180 FORJ=0TO2 | M19: 180 FORJ=0TO2 | N19: 180 FORJ=0TO2
A20: 190 ?CHR$(PEEK(S+(M-I)*3+J)); | B20: 190 ?CHR$(PEEK(S+(M-I)*3+J)); | C20: 190 ?CHR$(PEEK(S+(M-I)*3+J)); | D20: 190 ?CHR$(PEEK(S+(M-I)*3+J)); | E20: 190 ?CHR$(PEEK(S+(M-I)*3+J)); | F20: 190 ?CHR$(PEEK(S+(M-I)*3+J)); | G20: 190 ?CHR$(PEEK(S+(M-I)*3+J)); | H20: 190 ?CHR$(PEEK(S+(M-I)*3+J)); | I20: 190 ?CHR$(PEEK(S+(M-I)*3+J)); | J20: 190 ?CHR$(PEEK(S+(M-I)*3+J)); | K20: 190 ?CHR$(PEEK(S+(M-I)*3+J)); | L20: 190 ?CHR$(PEEK(S+(M-I)*3+J)); | M20: 190 ?CHR$(PEEK(S+(M-I)*3+J)); | N20: 190 ?CHR$(PEEK(S+(M-I)*3+J));
A21: 200 NEXT | B21: 200 NEXT | C21: 200 NEXT | D21: 200 NEXT | E21: 200 NEXT | F21: 200 NEXT | G21: 200 NEXT | H21: 200 NEXT | I21: 200 NEXT | J21: 200 NEXT | K21: 200 NEXT | L21: 200 NEXT | M21: 200 NEXT | N21: 200 NEXT
A22: 210 FORJ=3TO31:?"-";:NEXT | B22: 210 FORJ=3TO31:?"-";:NEXT | C22: 210 FORJ=3TO31:?"-";:NEXT | D22: 210 FORJ=3TO31:?"-";:NEXT | E22: 210 FORJ=3TO31:?"-";:NEXT | F22: 210 FORJ=3TO31:?"-";:NEXT | G22: 210 FORJ=3TO31:?"-";:NEXT | H22: 210 FORJ=3TO31:?"-";:NEXT | I22: 210 FORJ=3TO31:?"-";:NEXT | J22: 210 FORJ=3TO31:?"-";:NEXT | K22: 210 FORJ=3TO31:?"-";:NEXT | L22: 210 FORJ=3TO31:?"-";:NEXT | M22: 210 FORJ=3TO31:?"-";:NEXT | N22: 210 FORJ=3TO31:?"-";:NEXT
A23: 220 NEXT | B23: 220 NEXT | C23: 220 NEXT | D23: 220 NEXT | E23: 220 NEXT | F23: 220 NEXT | G23: 220 NEXT | H23: 220 NEXT | I23: 220 NEXT | J23: 220 NEXT | K23: 220 NEXT | L23: 220 NEXT | M23: 220 NEXT | N23: 220 NEXT
A24: 230 @E:LC0,0:?"LRUN";FILE() | B24: 230 @E:LC0,0:?"LRUN";FILE() | C24: 230 @E:LC0,0:?"LRUN";FILE() | D24: 230 @E:LC0,0:?"LRUN";FILE() | E24: 230 @E:LC0,0:?"LRUN";FILE() | F24: 230 @E:LC0,0:?"LRUN";FILE() | G24: 230 @E:LC0,0:?"LRUN";FILE() | H24: 230 @E:LC0,0:?"LRUN";FILE() | I24: 230 @E:LC0,0:?"LRUN";FILE() | J24: 230 @E:LC0,0:?"LRUN";FILE() | K24: 230 @E:LC0,0:?"LRUN";FILE() | L24: 230 @E:LC0,0:?"LRUN";FILE() | M24: 230 @E:LC0,0:?"LRUN";FILE() | N24: 230 @E:LC0,0:?"LRUN";FILE()
A25: 240 LC0,M+2:END | B25: 240 LC0,M+2:END | C25: 240 LC0,M+2:END | D25: 240 LC0,M+2:END | E25: 240 LC0,M+2:END | F25: 240 LC0,M+2:END | G25: 240 LC0,M+2:END | H25: 240 LC0,M+2:END | I25: 240 LC0,M+2:END | J25: 240 LC0,M+2:END | K25: 240 LC0,M+2:END | L25: 240 LC0,M+2:END | M25: 240 LC0,M+2:END | N25: 240 LC0,M+2:END
A26: SAVE100 | B26: SAVE101 | C26: SAVE102 | D26: SAVE103 | E26: SAVE104 | F26: SAVE105 | G26: SAVE106 | H26: SAVE107 | I26: SAVE108 | J26: SAVE109 | K26: SAVE110 | L26: SAVE111 | M26: SAVE112 | N26: SAVE113

Sheet 音階データ
B1: A | C1: 440 | D1: -2 | E1: -1 | F1: 0 | G1: 1 | H1: 2 | I1: 3 | J1: 4 | K1: 5 | L1: 6 | M1: 7 | N1: 8 | O1: 9 | P1: 10 | Q1: 11 | R1: 12 | S1: 13 | T1: 14 | U1: 15 | V1: 16 | W1: 17 | X1: 18 | Y1: 19 | Z1: 20
B2: 音名 | D2: ｿ-- | E2: ｿ#- | F2: ﾗ-- | G2: ｼbｰ | H2: ｼ-- | I2: ﾄﾞ- | J2: ﾄﾞ# | K2: ﾚ-- | L2: ﾐb- | M2: ﾐ-- | N2: ﾌｧ- | O2: ﾌｧ# | P2: ｿ-- | Q2: ｿ#- | R2: ﾗ-- | S2: ｼbｰ | T2: ｼ-- | U2: ﾄﾞ- | V2: ﾄﾞ# | W2: ﾚ-- | X2: ﾐb- | Y2: ﾐ-- | Z2: ﾌｧ-
B3: Hz | D3: =$C$1*2^(D1/12) -> 391.995436 | E3: 415.3046976 | F3: 440 | G3: 466.1637615 | H3: 493.8833013 | I3: 523.2511306 | J3: 554.365262 | K3: 587.3295358 | L3: 622.2539674 | M3: 659.2551138 | N3: 698.4564629 | O3: 739.9888454 | P3: 783.990872 | Q3: 830.6093952 | R3: 880 | S3: 932.327523 | T3: 987.7666025 | U3: 1046.502261 | V3: 1108.730524 | W3: 1174.659072 | X3: 1244.507935 | Y3: 1318.510228 | Z3: 1396.912926
B4: PWM | D4: =ROUND(100000/D$3,0) -> 255 | E4: 241 | F4: 227 | G4: 215 | H4: 202 | I4: 191 | J4: 180 | K4: 170 | L4: 161 | M4: 152 | N4: 143 | O4: 135 | P4: 128 | Q4: 120 | R4: 114 | S4: 107 | T4: 101 | U4: 96 | V4: 90 | W4: 85 | X4: 80 | Y4: 76 | Z4: 72
A5: 1オクターブ | B5: 半音階 | C5: ="20 M="&strcnt(C7,",") -> 20 M=13
C6: ="30 S="&""""&cat(I6:U6)&"""" -> 30 S="ﾄﾞ-ﾄﾞ#ﾚ--ﾐb-ﾐ--ﾌｧ-ﾌｧ#ｿ--ｿ#-ﾗ--ｼbｰｼ--ﾄﾞ-" | D6: =IF(D7<>"",D$2,"") -> ｿ-- | E6: ｿ#- | F6: ﾗ-- | G6: ｼbｰ | H6: ｼ-- | I6: ﾄﾞ- | J6: ﾄﾞ# | K6: ﾚ-- | L6: ﾐb- | M6: ﾐ-- | N6: ﾌｧ- | O6: ﾌｧ# | P6: ｿ-- | Q6: ｿ#- | R6: ﾗ-- | S6: ｼbｰ | T6: ｼ-- | U6: ﾄﾞ- | V6: ﾄﾞ# | W6: ﾚ-- | X6: ﾐb- | Y6: ﾐ-- | Z6: ﾌｧ-
C7: ="40 LET[0],"&cat(I7:U7,",") -> 40 LET[0],191,180,170,161,152,143,135,128,120,114,107,101,96 | D7: =D$4 -> 255 | E7: 241 | F7: 227 | G7: 215 | H7: 202 | I7: 191 | J7: 180 | K7: 170 | L7: 161 | M7: 152 | N7: 143 | O7: 135 | P7: 128 | Q7: 120 | R7: 114 | S7: 107 | T7: 101 | U7: 96 | V7: 90 | W7: 85 | X7: 80 | Y7: 76 | Z7: 72
B8: ハ長調 | C8: ="20 M="&strcnt(C10,",") -> 20 M=8
C9: ="30 S="&""""&cat(I9:U9)&"""" -> 30 S="ﾄﾞ-ﾚ--ﾐ--ﾌｧ-ｿ--ﾗ--ｼ--ﾄﾞ-" | D9: =IF(D10<>"",D$2,"") -> ｿ-- | F9: ﾗ-- | H9: ｼ-- | I9: ﾄﾞ- | K9: ﾚ-- | M9: ﾐ-- | N9: ﾌｧ- | P9: ｿ-- | R9: ﾗ-- | T9: ｼ-- | U9: ﾄﾞ- | W9: ﾚ-- | Y9: ﾐ-- | Z9: ﾌｧ-
C10: ="40 LET[0],"&cat(I10:U10,",") -> 40 LET[0],191,170,152,143,128,114,101,96 | D10: =D$4 -> 255 | F10: =F$4 -> 227 | H10: =H$4 -> 202 | I10: =I$4 -> 191 | K10: =K$4 -> 170 | M10: =M$4 -> 152 | N10: =N$4 -> 143 | P10: =P$4 -> 128 | R10: =R$4 -> 114 | T10: =T$4 -> 101 | U10: =U$4 -> 96 | W10: =W$4 -> 85 | Y10: =Y$4 -> 76 | Z10: =Z$4 -> 72
B11: Cm | C11: ="20 M="&strcnt(C13,",") -> 20 M=8
C12: ="30 S="&""""&cat(I12:U12)&"""" -> 30 S="ﾄﾞ-ﾚ--ﾐb-ﾌｧ-ｿ--ｿ#-ｼ--ﾄﾞ-" | D12: =IF(D13<>"",D$2,"") -> ｿ-- | E12: ｿ#- | H12: ｼ-- | I12: ﾄﾞ- | K12: ﾚ-- | L12: ﾐb- | N12: ﾌｧ- | P12: ｿ-- | Q12: ｿ#- | T12: ｼ-- | U12: ﾄﾞ- | W12: ﾚ-- | X12: ﾐb- | Z12: ﾌｧ-
C13: ="40 LET[0],"&cat(I13:U13,",") -> 40 LET[0],191,170,161,143,128,120,101,96 | D13: =D$4 -> 255 | E13: =E4 -> 241 | H13: =H$4 -> 202 | I13: =I$4 -> 191 | K13: =K$4 -> 170 | L13: =L$4 -> 161 | N13: =N$4 -> 143 | P13: =P$4 -> 128 | Q13: =Q$4 -> 120 | T13: =T$4 -> 101 | U13: =U$4 -> 96 | W13: =W$4 -> 85 | X13: =X$4 -> 80 | Z13: =Z$4 -> 72
B14: ブルーノート | C14: ="20 M="&strcnt(C16,",") -> 20 M=8
C15: ="30 S="&""""&cat(I15:U15)&"""" -> 30 S="ﾄﾞ-ﾚ--ﾐb-ﾌｧ-ﾌｧ#ｿ--ｼbｰﾄﾞ-" | D15: =IF(D16<>"",D$2,"") -> ｿ-- | G15: ｼbｰ | I15: ﾄﾞ- | K15: ﾚ-- | L15: ﾐb- | N15: ﾌｧ- | O15: ﾌｧ# | P15: ｿ-- | S15: ｼbｰ | U15: ﾄﾞ- | W15: ﾚ-- | X15: ﾐb- | Z15: ﾌｧ-
C16: ="40 LET[0],"&cat(I16:U16,",") -> 40 LET[0],191,170,161,143,135,128,107,96 | D16: =D$4 -> 255 | G16: =G$4 -> 215 | I16: =I$4 -> 191 | K16: =K$4 -> 170 | L16: =L$4 -> 161 | N16: =N$4 -> 143 | O16: =O$4 -> 135 | P16: =P$4 -> 128 | S16: =S$4 -> 107 | U16: =U$4 -> 96 | W16: =W$4 -> 85 | X16: =X$4 -> 80 | Z16: =Z$4 -> 72
B17: ゲゲゲ | C17: ="20 M="&strcnt(C19,",") -> 20 M=11
C18: ="30 S="&""""&cat(I18:U18)&"""" -> 30 S="ﾄﾞ-ﾚ--ﾐb-ﾌｧ-ﾌｧ#ｿ--ｿ#-ﾗ--ｼbｰｼ--ﾄﾞ-" | D18: =IF(D19<>"",D$2,"") -> ｿ-- | E18: ｿ#- | F18: ﾗ-- | G18: ｼbｰ | H18: ｼ-- | I18: ﾄﾞ- | K18: ﾚ-- | L18: ﾐb- | N18: ﾌｧ- | O18: ﾌｧ# | P18: ｿ-- | Q18: ｿ#- | R18: ﾗ-- | S18: ｼbｰ | T18: ｼ-- | U18: ﾄﾞ- | W18: ﾚ-- | X18: ﾐb- | Z18: ﾌｧ-
C19: ="40 LET[0],"&cat(I19:U19,",") -> 40 LET[0],191,170,161,143,135,128,120,114,107,101,96 | D19: =D$4 -> 255 | E19: 241 | F19: 227 | G19: 215 | H19: 202 | I19: 191 | K19: =K$4 -> 170 | L19: =L$4 -> 161 | N19: =N$4 -> 143 | O19: 135 | P19: 128 | Q19: 120 | R19: 114 | S19: 107 | T19: 101 | U19: 96 | W19: =W$4 -> 85 | X19: =X$4 -> 80 | Z19: =Z$4 -> 72
B20: 琉球 | C20: ="20 M="&strcnt(C22,",") -> 20 M=6
C21: ="30 S="&""""&cat(I21:U21)&"""" -> 30 S="ﾄﾞ-ﾐ--ﾌｧ-ｿ--ｼ--ﾄﾞ-" | D21: =IF(D22<>"",D$2,"") -> ｿ-- | H21: ｼ-- | I21: ﾄﾞ- | M21: ﾐ-- | N21: ﾌｧ- | P21: ｿ-- | T21: ｼ-- | U21: ﾄﾞ- | Y21: ﾐ-- | Z21: ﾌｧ-
C22: ="40 LET[0],"&cat(I22:U22,",") -> 40 LET[0],191,152,143,128,101,96 | D22: =D$4 -> 255 | H22: =H$4 -> 202 | I22: =I$4 -> 191 | M22: =M$4 -> 152 | N22: =N$4 -> 143 | P22: =P$4 -> 128 | T22: =T$4 -> 101 | U22: =U$4 -> 96 | Y22: =Y$4 -> 76 | Z22: =Z$4 -> 72
B23: ヨナ | C23: ="20 M="&strcnt(C25,",") -> 20 M=6
C24: ="30 S="&""""&cat(I24:U24)&"""" -> 30 S="ﾄﾞ-ﾚ--ﾐ--ｿ--ﾗ--ﾄﾞ-" | D24: =IF(D25<>"",D$2,"") -> ｿ-- | F24: ﾗ-- | I24: ﾄﾞ- | K24: ﾚ-- | M24: ﾐ-- | P24: ｿ-- | R24: ﾗ-- | U24: ﾄﾞ- | W24: ﾚ-- | Y24: ﾐ--
C25: ="40 LET[0],"&cat(I25:U25,",") -> 40 LET[0],191,170,152,128,114,96 | D25: =D$4 -> 255 | F25: =F$4 -> 227 | I25: =I$4 -> 191 | K25: =K$4 -> 170 | M25: =M$4 -> 152 | P25: =P$4 -> 128 | R25: =R$4 -> 114 | U25: =U$4 -> 96 | W25: =W$4 -> 85 | Y25: =Y$4 -> 76
A26: 2オクターブ | B26: 半音階 | C26: ="20 M="&strcnt(C28,",") -> 20 M=18
C27: ="30 S="&""""&cat(F27:W27)&"""" -> 30 S="ﾗ--ｼbｰｼ--ﾄﾞ-ﾄﾞ#ﾚ--ﾐb-ﾐ--ﾌｧ-ﾌｧ#ｿ--ｿ#-ﾗ--ｼbｰｼ--ﾄﾞ-ﾄﾞ#ﾚ--" | D27: =IF(D28<>"",D$2,"") -> ｿ-- | E27: ｿ#- | F27: ﾗ-- | G27: ｼbｰ | H27: ｼ-- | I27: ﾄﾞ- | J27: ﾄﾞ# | K27: ﾚ-- | L27: ﾐb- | M27: ﾐ-- | N27: ﾌｧ- | O27: ﾌｧ# | P27: ｿ-- | Q27: ｿ#- | R27: ﾗ-- | S27: ｼbｰ | T27: ｼ-- | U27: ﾄﾞ- | V27: ﾄﾞ# | W27: ﾚ-- | X27: ﾐb- | Y27: ﾐ-- | Z27: ﾌｧ-
C28: ="40 LET[0],"&cat(F28:W28,",") -> 40 LET[0],227,215,202,191,180,170,161,152,143,135,128,120,114,107,101,96,90,85 | D28: =D$4 -> 255 | E28: 241 | F28: 227 | G28: 215 | H28: 202 | I28: 191 | J28: 180 | K28: 170 | L28: 161 | M28: 152 | N28: 143 | O28: 135 | P28: 128 | Q28: 120 | R28: 114 | S28: 107 | T28: 101 | U28: 96 | V28: 90 | W28: 85 | X28: 80 | Y28: 76 | Z28: 72
B29: ハ長調 | C29: ="20 M="&strcnt(C31,",") -> 20 M=14
C30: ="30 S="&""""&cat(D30:Z30)&"""" -> 30 S="ｿ--ﾗ--ｼ--ﾄﾞ-ﾚ--ﾐ--ﾌｧ-ｿ--ﾗ--ｼ--ﾄﾞ-ﾚ--ﾐ--ﾌｧ-" | D30: =IF(D31<>"",D$2,"") -> ｿ-- | F30: ﾗ-- | H30: ｼ-- | I30: ﾄﾞ- | K30: ﾚ-- | M30: ﾐ-- | N30: ﾌｧ- | P30: ｿ-- | R30: ﾗ-- | T30: ｼ-- | U30: ﾄﾞ- | W30: ﾚ-- | Y30: ﾐ-- | Z30: ﾌｧ-
C31: ="40 LET[0],"&cat(D31:Z31,",") -> 40 LET[0],255,227,202,191,170,152,143,128,114,101,96,85,76,72 | D31: =D$4 -> 255 | F31: =F$4 -> 227 | H31: =H$4 -> 202 | I31: =I$4 -> 191 | K31: =K$4 -> 170 | M31: =M$4 -> 152 | N31: =N$4 -> 143 | P31: =P$4 -> 128 | R31: =R$4 -> 114 | T31: =T$4 -> 101 | U31: =U$4 -> 96 | W31: =W$4 -> 85 | Y31: =Y$4 -> 76 | Z31: =Z$4 -> 72
B32: Cm | C32: ="20 M="&strcnt(C34,",") -> 20 M=14
C33: ="30 S="&""""&cat(D33:Z33)&"""" -> 30 S="ｿ--ｿ#-ｼ--ﾄﾞ-ﾚ--ﾐb-ﾌｧ-ｿ--ｿ#-ｼ--ﾄﾞ-ﾚ--ﾐb-ﾌｧ-" | D33: =IF(D34<>"",D$2,"") -> ｿ-- | E33: ｿ#- | H33: ｼ-- | I33: ﾄﾞ- | K33: ﾚ-- | L33: ﾐb- | N33: ﾌｧ- | P33: ｿ-- | Q33: ｿ#- | T33: ｼ-- | U33: ﾄﾞ- | W33: ﾚ-- | X33: ﾐb- | Z33: ﾌｧ-
C34: ="40 LET[0],"&cat(D34:Z34,",") -> 40 LET[0],255,241,202,191,170,161,143,128,120,101,96,85,80,72 | D34: =D$4 -> 255 | E34: =E28 -> 241 | H34: =H$4 -> 202 | I34: =I$4 -> 191 | K34: =K$4 -> 170 | L34: =L$4 -> 161 | N34: =N$4 -> 143 | P34: =P$4 -> 128 | Q34: =Q$4 -> 120 | T34: =T$4 -> 101 | U34: =U$4 -> 96 | W34: =W$4 -> 85 | X34: =X$4 -> 80 | Z34: =Z$4 -> 72
B35: ブルーノート | C35: ="20 M="&strcnt(C37,",") -> 20 M=13
C36: ="30 S="&""""&cat(D36:Z36)&"""" -> 30 S="ｿ--ｼbｰﾄﾞ-ﾚ--ﾐb-ﾌｧ-ﾌｧ#ｿ--ｼbｰﾄﾞ-ﾚ--ﾐb-ﾌｧ-" | D36: =IF(D37<>"",D$2,"") -> ｿ-- | G36: ｼbｰ | I36: ﾄﾞ- | K36: ﾚ-- | L36: ﾐb- | N36: ﾌｧ- | O36: ﾌｧ# | P36: ｿ-- | S36: ｼbｰ | U36: ﾄﾞ- | W36: ﾚ-- | X36: ﾐb- | Z36: ﾌｧ-
C37: ="40 LET[0],"&cat(D37:Z37,",") -> 40 LET[0],255,215,191,170,161,143,135,128,107,96,85,80,72 | D37: =D$4 -> 255 | G37: =G$4 -> 215 | I37: =I$4 -> 191 | K37: =K$4 -> 170 | L37: =L$4 -> 161 | N37: =N$4 -> 143 | O37: =O$4 -> 135 | P37: =P$4 -> 128 | S37: =S$4 -> 107 | U37: =U$4 -> 96 | W37: =W$4 -> 85 | X37: =X$4 -> 80 | Z37: =Z$4 -> 72
B38: ゲゲゲ | C38: ="20 M="&strcnt(C40,",") -> 20 M=19
C39: ="30 S="&""""&cat(D39:Z39)&"""" -> 30 S="ｿ--ｿ#-ﾗ--ｼbｰｼ--ﾄﾞ-ﾚ--ﾐb-ﾌｧ-ﾌｧ#ｿ--ｿ#-ﾗ--ｼbｰｼ--ﾄﾞ-ﾚ--ﾐb-ﾌｧ-" | D39: =IF(D40<>"",D$2,"") -> ｿ-- | E39: ｿ#- | F39: ﾗ-- | G39: ｼbｰ | H39: ｼ-- | I39: ﾄﾞ- | K39: ﾚ-- | L39: ﾐb- | N39: ﾌｧ- | O39: ﾌｧ# | P39: ｿ-- | Q39: ｿ#- | R39: ﾗ-- | S39: ｼbｰ | T39: ｼ-- | U39: ﾄﾞ- | W39: ﾚ-- | X39: ﾐb- | Z39: ﾌｧ-
C40: ="40 LET[0],"&cat(D40:Z40,",") -> 40 LET[0],255,241,227,215,202,191,170,161,143,135,128,120,114,107,101,96,85,80,72 | D40: =D$4 -> 255 | E40: 241 | F40: 227 | G40: 215 | H40: 202 | I40: 191 | K40: =K$4 -> 170 | L40: =L$4 -> 161 | N40: =N$4 -> 143 | O40: 135 | P40: 128 | Q40: 120 | R40: 114 | S40: 107 | T40: 101 | U40: 96 | W40: =W$4 -> 85 | X40: =X$4 -> 80 | Z40: =Z$4 -> 72
B41: 琉球 | C41: ="20 M="&strcnt(C43,",") -> 20 M=10
C42: ="30 S="&""""&cat(D42:Z42)&"""" -> 30 S="ｿ--ｼ--ﾄﾞ-ﾐ--ﾌｧ-ｿ--ｼ--ﾄﾞ-ﾐ--ﾌｧ-" | D42: =IF(D43<>"",D$2,"") -> ｿ-- | H42: ｼ-- | I42: ﾄﾞ- | M42: ﾐ-- | N42: ﾌｧ- | P42: ｿ-- | T42: ｼ-- | U42: ﾄﾞ- | Y42: ﾐ-- | Z42: ﾌｧ-
C43: ="40 LET[0],"&cat(D43:Z43,",") -> 40 LET[0],255,202,191,152,143,128,101,96,76,72 | D43: =D$4 -> 255 | H43: =H$4 -> 202 | I43: =I$4 -> 191 | M43: =M$4 -> 152 | N43: =N$4 -> 143 | P43: =P$4 -> 128 | T43: =T$4 -> 101 | U43: =U$4 -> 96 | Y43: =Y$4 -> 76 | Z43: =Z$4 -> 72
B44: ヨナ | C44: ="20 M="&strcnt(C46,",") -> 20 M=10
C45: ="30 S="&""""&cat(D45:Z45)&"""" -> 30 S="ｿ--ﾗ--ﾄﾞ-ﾚ--ﾐ--ｿ--ﾗ--ﾄﾞ-ﾚ--ﾐ--" | D45: =IF(D46<>"",D$2,"") -> ｿ-- | F45: ﾗ-- | I45: ﾄﾞ- | K45: ﾚ-- | M45: ﾐ-- | P45: ｿ-- | R45: ﾗ-- | U45: ﾄﾞ- | W45: ﾚ-- | Y45: ﾐ--
C46: ="40 LET[0],"&cat(D46:Z46,",") -> 40 LET[0],255,227,191,170,152,128,114,96,85,76 | D46: =D$4 -> 255 | F46: =F$4 -> 227 | I46: =I$4 -> 191 | K46: =K$4 -> 170 | M46: =M$4 -> 152 | P46: =P$4 -> 128 | R46: =R$4 -> 114 | U46: =U$4 -> 96 | W46: =W$4 -> 85 | Y46: =Y$4 -> 76

Sheet PLAY
D2: ド | E2: レ | F2: ミ | G2: ファ | H2: ソ | I2: ラ | J2: シ
B3: O1 | C3: Hz | D3: 32.9 | E3: 36.9 | F3: 41.3 | G3: 43.9 | H3: 49.1 | I3: 55.3 | J3: 61.8
C4: セント | D4: +9 | E4: +8 | F4: +6 | G4: +9 | H4: +4 | I4: +10 | J4: +3
B5: O2 | C5: Hz | D5: 65.5 | E5: 73.4 | F5: 82.7 | G5: 87.3 | H5: 98.2 | I5: 110.6 | J5: 124.7
C6: セント | D6: +1 | E6: 0 | F6: +5 | G6: 0 | H6: +3 | I6: +10 | J6: +17
B7: O3 | C7: Hz | D7: 130.9 | E7: 148.2 | F7: 167.1 | G7: 174.5 | H7: 196.4 | I7: 218.2 | J7: 354.4
C8: セント | D8: +1 | E8: +16 | F8: +24 | G8: -1 | H8: +3 | I8: -14 | J8: -11
B9: O4 | C9: Hz | D9: 261.8 | E9: 290.9 | F9: 327.3 | G9: 357 | H9: 392.7 | I9: 436.3 | J9: 490.9
C10: セント | D10: +1 | E10: -16 | F10: -12 | G10: +38 | H10: +3 | I10: -14 | J10: -11
B11: O5 | C11: Hz | D11: 523.6 | E11: 604.2 | F11: 654.5 | G11: 714 | H11: 785,4 | I11: 872.7 | J11: 981.8
C12: セント | D12: +1 | E12: +49 | F12: -13 | G12: +38 | H12: +3 | I12: -14 | J12: -11

Sheet 平均律
B2: 平均律の音階 | F2: 基準 | G2: 440
B4: 音程 | C4: 3 | D4: 5 | E4: 7 | F4: 8 | G4: 10 | H4: 12 | I4: 14
B5: 音名 | C5: ド | D5: レ | E5: ミ | F5: ファ | G5: ソ | H5: ラ | I5: シ
B6: 周波数 | C6: =ROUND($G$2*2^(C4/12),0) -> 523 | D6: =ROUND($G$2*2^(D4/12),0) -> 587 | E6: =ROUND($G$2*2^(E4/12),0) -> 659 | F6: =ROUND($G$2*2^(F4/12),0) -> 698 | G6: =ROUND($G$2*2^(G4/12),0) -> 784 | H6: =ROUND($G$2*2^(H4/12),0) -> 880 | I6: =ROUND($G$2*2^(I4/12),0) -> 988
B7: IchigoJam | C7: 524 | D7: 604 | E7: 655 | F7: 714 | G7: 785 | H7: 873 | I7: 982
B8: 差 | C8: =C7-C6 -> 1 | D8: =D7-D6 -> 17 | E8: =E7-E6 -> -4 | F8: =F7-F6 -> 16 | G8: =G7-G6 -> 1 | H8: =H7-H6 -> -7 | I8: =I7-I6 -> -6

Sheet 平均律データ
D2: 平均律の音階 | G2: 基準 | H2: 440
D4: 音程 | E4: 3 | F4: 4 | G4: 5 | H4: 6 | I4: 7 | J4: 8 | K4: 9 | L4: 10 | M4: 11 | N4: 12 | O4: 13 | P4: 14
D5: 音名 | E5: ド | F5: ド♯ | G5: レ | H5: ミ♭ | I5: ミ | J5: ファ | K5: ファ♯ | L5: ソ | M5: ソ♯ | N5: ラ | O5: シ♭ | P5: シ
A6: -3 | B6: =$H$2*2^A6 -> 55 | D6: 周波数 | E6: =ROUND($B6*2^(E$4/12),0) -> 65 | F6: =ROUND($B6*2^(F$4/12),0) -> 69 | G6: =ROUND($B6*2^(G$4/12),0) -> 73 | H6: =ROUND($B6*2^(H$4/12),0) -> 78 | I6: =ROUND($B6*2^(I$4/12),0) -> 82 | J6: =ROUND($B6*2^(J$4/12),0) -> 87 | K6: =ROUND($B6*2^(K$4/12),0) -> 92 | L6: =ROUND($B6*2^(L$4/12),0) -> 98 | M6: =ROUND($B6*2^(M$4/12),0) -> 104 | N6: =ROUND($B6*2^(N$4/12),0) -> 110 | O6: =ROUND($B6*2^(O$4/12),0) -> 117 | P6: =ROUND($B6*2^(P$4/12),0) -> 123
D7: PWM | E7: =ROUND(100000/($B6*2^(E$4/12)),0) -> 1529 | F7: =ROUND(100000/($B6*2^(F$4/12)),0) -> 1443 | G7: =ROUND(100000/($B6*2^(G$4/12)),0) -> 1362 | H7: =ROUND(100000/($B6*2^(H$4/12)),0) -> 1286 | I7: =ROUND(100000/($B6*2^(I$4/12)),0) -> 1213 | J7: =ROUND(100000/($B6*2^(J$4/12)),0) -> 1145 | K7: =ROUND(100000/($B6*2^(K$4/12)),0) -> 1081 | L7: =ROUND(100000/($B6*2^(L$4/12)),0) -> 1020 | M7: =ROUND(100000/($B6*2^(M$4/12)),0) -> 963 | N7: =ROUND(100000/($B6*2^(N$4/12)),0) -> 909 | O7: =ROUND(100000/($B6*2^(O$4/12)),0) -> 858 | P7: =ROUND(100000/($B6*2^(P$4/12)),0) -> 810
A8: -2 | B8: =$H$2*2^A8 -> 110 | D8: 周波数 | E8: =ROUND($B8*2^(E$4/12),0) -> 131 | F8: =ROUND($B8*2^(F$4/12),0) -> 139 | G8: =ROUND($B8*2^(G$4/12),0) -> 147 | H8: =ROUND($B8*2^(H$4/12),0) -> 156 | I8: =ROUND($B8*2^(I$4/12),0) -> 165 | J8: =ROUND($B8*2^(J$4/12),0) -> 175 | K8: =ROUND($B8*2^(K$4/12),0) -> 185 | L8: =ROUND($B8*2^(L$4/12),0) -> 196 | M8: =ROUND($B8*2^(M$4/12),0) -> 208 | N8: =ROUND($B8*2^(N$4/12),0) -> 220 | O8: =ROUND($B8*2^(O$4/12),0) -> 233 | P8: =ROUND($B8*2^(P$4/12),0) -> 247
D9: PWM | E9: =ROUND(100000/($B8*2^(E$4/12)),0) -> 764 | F9: =ROUND(100000/($B8*2^(F$4/12)),0) -> 722 | G9: =ROUND(100000/($B8*2^(G$4/12)),0) -> 681 | H9: =ROUND(100000/($B8*2^(H$4/12)),0) -> 643 | I9: =ROUND(100000/($B8*2^(I$4/12)),0) -> 607 | J9: =ROUND(100000/($B8*2^(J$4/12)),0) -> 573 | K9: =ROUND(100000/($B8*2^(K$4/12)),0) -> 541 | L9: =ROUND(100000/($B8*2^(L$4/12)),0) -> 510 | M9: =ROUND(100000/($B8*2^(M$4/12)),0) -> 482 | N9: =ROUND(100000/($B8*2^(N$4/12)),0) -> 455 | O9: =ROUND(100000/($B8*2^(O$4/12)),0) -> 429 | P9: =ROUND(100000/($B8*2^(P$4/12)),0) -> 405
A10: -1 | B10: =$H$2*2^A10 -> 220 | D10: 周波数 | E10: =ROUND($B10*2^(E$4/12),0) -> 262 | F10: =ROUND($B10*2^(F$4/12),0) -> 277 | G10: =ROUND($B10*2^(G$4/12),0) -> 294 | H10: =ROUND($B10*2^(H$4/12),0) -> 311 | I10: =ROUND($B10*2^(I$4/12),0) -> 330 | J10: =ROUND($B10*2^(J$4/12),0) -> 349 | K10: =ROUND($B10*2^(K$4/12),0) -> 370 | L10: =ROUND($B10*2^(L$4/12),0) -> 392 | M10: =ROUND($B10*2^(M$4/12),0) -> 415 | N10: =ROUND($B10*2^(N$4/12),0) -> 440 | O10: =ROUND($B10*2^(O$4/12),0) -> 466 | P10: =ROUND($B10*2^(P$4/12),0) -> 494
D11: PWM | E11: =ROUND(100000/($B10*2^(E$4/12)),0) -> 382 | F11: =ROUND(100000/($B10*2^(F$4/12)),0) -> 361 | G11: =ROUND(100000/($B10*2^(G$4/12)),0) -> 341 | H11: =ROUND(100000/($B10*2^(H$4/12)),0) -> 321 | I11: =ROUND(100000/($B10*2^(I$4/12)),0) -> 303 | J11: =ROUND(100000/($B10*2^(J$4/12)),0) -> 286 | K11: =ROUND(100000/($B10*2^(K$4/12)),0) -> 270 | L11: =ROUND(100000/($B10*2^(L$4/12)),0) -> 255 | M11: =ROUND(100000/($B10*2^(M$4/12)),0) -> 241 | N11: =ROUND(100000/($B10*2^(N$4/12)),0) -> 227 | O11: =ROUND(100000/($B10*2^(O$4/12)),0) -> 215 | P11: =ROUND(100000/($B10*2^(P$4/12)),0) -> 202
A12: 0 | B12: =$H$2*2^A12 -> 440 | D12: 周波数 | E12: =ROUND($B12*2^(E$4/12),0) -> 523 | F12: =ROUND($B12*2^(F$4/12),0) -> 554 | G12: =ROUND($B12*2^(G$4/12),0) -> 587 | H12: =ROUND($B12*2^(H$4/12),0) -> 622 | I12: =ROUND($B12*2^(I$4/12),0) -> 659 | J12: =ROUND($B12*2^(J$4/12),0) -> 698 | K12: =ROUND($B12*2^(K$4/12),0) -> 740 | L12: =ROUND($B12*2^(L$4/12),0) -> 784 | M12: =ROUND($B12*2^(M$4/12),0) -> 831 | N12: =ROUND($B12*2^(N$4/12),0) -> 880 | O12: =ROUND($B12*2^(O$4/12),0) -> 932 | P12: =ROUND($B12*2^(P$4/12),0) -> 988
D13: PWM | E13: =ROUND(100000/($B12*2^(E$4/12)),0) -> 191 | F13: =ROUND(100000/($B12*2^(F$4/12)),0) -> 180 | G13: =ROUND(100000/($B12*2^(G$4/12)),0) -> 170 | H13: =ROUND(100000/($B12*2^(H$4/12)),0) -> 161 | I13: =ROUND(100000/($B12*2^(I$4/12)),0) -> 152 | J13: =ROUND(100000/($B12*2^(J$4/12)),0) -> 143 | K13: =ROUND(100000/($B12*2^(K$4/12)),0) -> 135 | L13: =ROUND(100000/($B12*2^(L$4/12)),0) -> 128 | M13: =ROUND(100000/($B12*2^(M$4/12)),0) -> 120 | N13: =ROUND(100000/($B12*2^(N$4/12)),0) -> 114 | O13: =ROUND(100000/($B12*2^(O$4/12)),0) -> 107 | P13: =ROUND(100000/($B12*2^(P$4/12)),0) -> 101
A14: 1 | B14: =$H$2*2^A14 -> 880 | D14: 周波数 | E14: =ROUND($B14*2^(E$4/12),0) -> 1047 | F14: =ROUND($B14*2^(F$4/12),0) -> 1109 | G14: =ROUND($B14*2^(G$4/12),0) -> 1175 | H14: =ROUND($B14*2^(H$4/12),0) -> 1245 | I14: =ROUND($B14*2^(I$4/12),0) -> 1319 | J14: =ROUND($B14*2^(J$4/12),0) -> 1397 | K14: =ROUND($B14*2^(K$4/12),0) -> 1480 | L14: =ROUND($B14*2^(L$4/12),0) -> 1568 | M14: =ROUND($B14*2^(M$4/12),0) -> 1661 | N14: =ROUND($B14*2^(N$4/12),0) -> 1760 | O14: =ROUND($B14*2^(O$4/12),0) -> 1865 | P14: =ROUND($B14*2^(P$4/12),0) -> 1976
D15: PWM | E15: =ROUND(100000/($B14*2^(E$4/12)),0) -> 96 | F15: =ROUND(100000/($B14*2^(F$4/12)),0) -> 90 | G15: =ROUND(100000/($B14*2^(G$4/12)),0) -> 85 | H15: =ROUND(100000/($B14*2^(H$4/12)),0) -> 80 | I15: =ROUND(100000/($B14*2^(I$4/12)),0) -> 76 | J15: =ROUND(100000/($B14*2^(J$4/12)),0) -> 72 | K15: =ROUND(100000/($B14*2^(K$4/12)),0) -> 68 | L15: =ROUND(100000/($B14*2^(L$4/12)),0) -> 64 | M15: =ROUND(100000/($B14*2^(M$4/12)),0) -> 60 | N15: =ROUND(100000/($B14*2^(N$4/12)),0) -> 57 | O15: =ROUND(100000/($B14*2^(O$4/12)),0) -> 54 | P15: =ROUND(100000/($B14*2^(P$4/12)),0) -> 51
A16: 2 | B16: =$H$2*2^A16 -> 1760 | D16: 周波数 | E16: =ROUND($B16*2^(E$4/12),0) -> 2093 | F16: =ROUND($B16*2^(F$4/12),0) -> 2217 | G16: =ROUND($B16*2^(G$4/12),0) -> 2349 | H16: =ROUND($B16*2^(H$4/12),0) -> 2489 | I16: =ROUND($B16*2^(I$4/12),0) -> 2637 | J16: =ROUND($B16*2^(J$4/12),0) -> 2794 | K16: =ROUND($B16*2^(K$4/12),0) -> 2960 | L16: =ROUND($B16*2^(L$4/12),0) -> 3136 | M16: =ROUND($B16*2^(M$4/12),0) -> 3322 | N16: =ROUND($B16*2^(N$4/12),0) -> 3520 | O16: =ROUND($B16*2^(O$4/12),0) -> 3729 | P16: =ROUND($B16*2^(P$4/12),0) -> 3951
D17: PWM | E17: =ROUND(100000/($B16*2^(E$4/12)),0) -> 48 | F17: =ROUND(100000/($B16*2^(F$4/12)),0) -> 45 | G17: =ROUND(100000/($B16*2^(G$4/12)),0) -> 43 | H17: =ROUND(100000/($B16*2^(H$4/12)),0) -> 40 | I17: =ROUND(100000/($B16*2^(I$4/12)),0) -> 38 | J17: =ROUND(100000/($B16*2^(J$4/12)),0) -> 36 | K17: =ROUND(100000/($B16*2^(K$4/12)),0) -> 34 | L17: =ROUND(100000/($B16*2^(L$4/12)),0) -> 32 | M17: =ROUND(100000/($B16*2^(M$4/12)),0) -> 30 | N17: =ROUND(100000/($B16*2^(N$4/12)),0) -> 28 | O17: =ROUND(100000/($B16*2^(O$4/12)),0) -> 27 | P17: =ROUND(100000/($B16*2^(P$4/12)),0) -> 25

Sheet PWM
C4: 数2
D6: 数3
B9: PWM ポート,H,H+L
B10: 0.01ミリ秒単位
